bitfinex/quotes_BTCUSD_20251231
["timestamp","ask_amount","ask_price","bid_price","bid_amount"]
[1767219699544,0.01068745,87905.0,87891.0,0.04018997]
[1767219699893,0.09307131,87906.0,87891.0,0.04018997]
[1767219700096,0.01068737,87905.0,87891.0,0.04018997]
[1767219700269,0.09307131,87906.0,87891.0,0.04018997]
[1767219700475,0.01068747,87905.0,87891.0,0.04018997]
[1767219700680,0.09307131,87906.0,87891.0,0.04018997]
[1767219700881,0.01068747,87905.0,87891.0,0.04018997]
[1767219701045,0.09307131,87906.0,87891.0,0.04018997]
[1767219701250,0.01068747,87905.0,87891.0,0.04018997]
[1767219701474,0.09307131,87906.0,87891.0,0.04018997]
[1767219701707,0.01068763,87905.0,87891.0,0.04018997]
[1767219701881,0.09307131,87906.0,87891.0,0.04018997]
[1767219702050,0.01068763,87905.0,87891.0,0.04018997]
[1767219702254,0.09307131,87906.0,87891.0,0.04018997]
[1767219702462,0.010688,87905.0,87891.0,0.04018997]
[1767219702683,0.010688,87904.0,87891.0,0.04018997]
[1767219703090,0.09307131,87905.0,87891.0,0.04018997]
[1767219703374,0.09307131,87905.0,87891.0,0.11714053]
[1767219704213,0.09307131,87905.0,87891.0,0.10131321]
[1767219704639,0.01784321,87910.0,87892.0,0.04009077]
[1767219704786,0.01068761,87909.0,87894.0,0.10121401]
[1767219705125,0.01068761,87908.0,87894.0,0.04009077]
[1767219705299,0.09321681,87911.0,87894.0,0.04009077]
[1767219705501,0.01068695,87910.0,87894.0,0.04009077]
[1767219705705,0.01068695,87909.0,87895.0,0.02282]
[1767219705927,0.09321681,87911.0,87894.0,0.04009077]
[1767219705928,0.01068695,87908.0,87894.0,0.04009077]
[1767219706167,0.09307131,87917.0,87895.0,0.04006688]
[1767219706310,0.09307131,87917.0,87897.0,0.04091964]
[1767219706311,0.10375649,87916.0,87897.0,0.04091964]
[1767219706512,0.10375649,87915.0,87898.0,0.0114]
[1767219706684,0.01068518,87914.0,87898.0,0.0114]
[1767219706883,0.09307131,87915.0,87898.0,0.0114]
[1767219706884,0.01068518,87913.0,87899.0,0.01134429]
[1767219707137,0.01068518,87912.0,87899.0,0.01134429]
[1767219707289,0.01068518,87911.0,87899.0,0.01134429]
[1767219707488,0.09307131,87915.0,87899.0,0.01134429]
[1767219707688,0.01068398,87914.0,87899.0,0.01134429]
[1767219707922,0.01068398,87913.0,87899.0,0.01134429]
[1767219708122,0.01068398,87912.0,87899.0,0.01134429]
[1767219708440,0.01068398,87911.0,87899.0,0.01134429]
[1767219708616,0.09307131,87915.0,87898.0,0.0114]
[1767219708804,0.01068311,87914.0,87898.0,0.0114]
[1767219709003,0.01068311,87913.0,87898.0,0.0114]
[1767219709222,0.01068311,87912.0,87898.0,0.0114]
[1767219709399,0.09307131,87915.0,87898.0,0.0114]
[1767219709604,0.0106823,87914.0,87898.0,0.0114]
[1767219709786,0.09307131,87915.0,87898.0,0.0114]
[1767219709787,0.0106823,87913.0,87898.0,0.0114]
[1767219709995,0.0106823,87912.0,87898.0,0.0114]
[1767219710210,0.09307131,87915.0,87898.0,0.0114]
[1767219710413,0.01068169,87914.0,87898.0,0.0114]
[1767219710616,0.01068169,87913.0,87898.0,0.0114]
[1767219710942,0.01068169,87912.0,87898.0,0.0114]
[1767219711144,0.09307131,87915.0,87898.0,0.0114]
[1767219711353,0.01068169,87914.0,87898.0,0.0114]
[1767219711680,0.01068169,87913.0,87898.0,0.0114]
[1767219711886,0.01068169,87912.0,87898.0,0.02274429]
[1767219712019,0.09132238,87915.0,87898.0,0.02274429]
[1767219712220,0.0106812,87914.0,87898.0,0.02274429]
[1767219712442,0.0106812,87913.0,87898.0,0.02274429]
[1767219712765,0.0106812,87912.0,87898.0,0.02274429]
[1767219712974,0.09132238,87915.0,87898.0,0.02274429]
[1767219713135,0.01068081,87914.0,87898.0,0.02274429]
[1767219713337,0.01068081,87913.0,87898.0,0.02274429]
[1767219713538,0.01068081,87912.0,87898.0,0.02274429]
[1767219713740,0.00010064,87917.0,87899.0,0.04083694]
[1767219713941,0.01068052,87916.0,87899.0,0.04083694]
[1767219714159,0.01068052,87915.0,87899.0,0.04083694]
[1767219714342,0.01068052,87914.0,87899.0,0.04083694]
[1767219714670,0.01068052,87913.0,87899.0,0.04083694]
[1767219714834,0.00010064,87917.0,87899.0,0.04083694]
[1767219715017,0.01068033,87916.0,87899.0,0.04083694]
[1767219715217,0.01068033,87915.0,87900.0,0.04081743]
[1767219715436,0.01068033,87914.0,87900.0,0.04081743]
[1767219715667,0.01068033,87913.0,87900.0,0.04081743]
[1767219715834,0.00010064,87917.0,87900.0,0.04081743]
[1767219716047,0.01068023,87916.0,87900.0,0.04081743]
[1767219716257,0.01068023,87915.0,87900.0,0.04081743]
[1767219716431,0.01068023,87914.0,87900.0,0.04081743]
[1767219716638,0.01068023,87913.0,87900.0,0.04081743]
[1767219716845,0.00010064,87917.0,87900.0,0.04081743]
[1767219717074,0.01068027,87916.0,87900.0,0.04081743]
[1767219717275,0.01068027,87915.0,87900.0,0.04081743]
[1767219717513,0.01068027,87914.0,87900.0,0.04081743]
[1767219717667,0.01068027,87913.0,87900.0,0.04081743]
[1767219717873,0.00010064,87917.0,87900.0,0.04081743]
[1767219718169,0.01068042,87916.0,87900.0,0.04081743]
[1767219718378,0.01068042,87915.0,87900.0,0.04081743]
[1767219718577,0.01068042,87914.0,87900.0,0.04081743]
[1767219718836,0.01068042,87913.0,87900.0,0.04081743]
[1767219718998,0.00010064,87917.0,87900.0,0.04081743]
[1767219719194,0.01068036,87916.0,87900.0,0.0532851]
[1767219719415,0.01068036,87915.0,87900.0,0.0532851]
[1767219719617,0.01068036,87914.0,87900.0,0.0532851]
[1767219719931,0.01068036,87913.0,87901.0,0.01258083]
[1767219720129,0.00010064,87917.0,87900.0,0.04081743]
[1767219720281,0.01068036,87916.0,87900.0,0.04081743]
[1767219720482,0.01068036,87915.0,87900.0,0.04081743]
[1767219720683,0.01068036,87914.0,87900.0,0.04081743]
[1767219720879,0.01068036,87913.0,87900.0,0.04081743]
[1767219721240,0.01068036,87912.0,87900.0,0.04081743]
[1767219721455,0.00010064,87917.0,87900.0,0.04081743]
[1767219721660,0.01068056,87916.0,87900.0,0.04081743]
[1767219721862,0.01068056,87915.0,87900.0,0.04081743]
[1767219722058,0.01068056,87914.0,87900.0,0.04081743]
[1767219722354,0.01068056,87913.0,87900.0,0.04081743]
[1767219722582,0.01068056,87912.0,87900.0,0.04081743]
[1767219722858,0.00010064,87917.0,87900.0,0.04081743]
[1767219723037,0.01068061,87916.0,87900.0,0.04081743]
[1767219723255,0.10200299,87915.0,87898.0,0.0114]
[1767219723457,0.09132238,87913.0,87898.0,0.0114]
[1767219723643,0.01068061,87912.0,87898.0,0.0114]
[1767219724129,0.01068061,87912.0,87898.0,0.05214374]
[1767219725934,0.01068061,87912.0,87899.0,0.04072636]
[1767219734322,0.09132238,87913.0,87899.0,0.04072636]
[1767219734323,0.09132238,87913.0,87899.0,0.05660732]
[1767219734912,0.00010064,87917.0,87900.0,0.04065293]
[1767219735824,0.00010064,87917.0,87899.0,0.0770042]
[1767219736026,0.00010064,87917.0,87900.0,0.04064524]
[1767219736356,0.09042478,87918.0,87900.0,0.04064524]
[1767219736598,0.09042478,87918.0,87902.0,0.04153523]
[1767219736995,0.0001455,87920.0,87909.0,0.05396026]
[1767219737170,0.0001455,87920.0,87910.0,0.56787877]
[1767219737370,0.00765241,87922.0,87911.0,0.05396804]
[1767219738472,0.00665417,87922.0,87911.0,0.05396804]
[1767219738790,0.00665417,87922.0,87912.0,0.01264913]
[1767219747867,0.00665417,87922.0,87912.0,0.01259226]
[1767219750465,0.00665417,87922.0,87912.0,0.01253539]
[1767219754506,0.0880453,87921.0,87912.0,0.01253539]
[1767219754712,0.08704706,87921.0,87912.0,0.01198639]
[1767219755795,0.08704706,87921.0,87913.0,0.00643148]
[1767219759306,0.08604882,87921.0,87913.0,0.00643148]
[1767219760133,0.08604882,87921.0,87913.0,0.0063746]
[1767219763264,0.08604882,87921.0,87913.0,0.04092844]
[1767219765331,0.08604882,87921.0,87914.0,0.04092844]
[1767219766381,0.08604882,87921.0,87915.0,0.04092844]
[1767219768996,0.08604882,87921.0,87914.0,0.04098455]
[1767219769346,0.08659877,87916.0,87910.0,0.0114]
[1767219769478,0.09370123,87922.0,87910.0,0.0114]
[1767219779210,0.09370123,87922.0,87910.0,0.07252324]
[1767219780453,0.00565593,87922.0,87910.0,0.0932586]
[1767219782179,0.00565593,87922.0,87910.0,0.07252324]
[1767219790752,0.00565593,87922.0,87911.0,0.06112324]
[1767219791327,0.00565593,87922.0,87911.0,0.05257023]
[1767219791727,0.00565593,87922.0,87910.0,0.0114]
[1767219799121,0.00565593,87922.0,87915.0,0.0409936]
[1767219799320,0.00565593,87922.0,87916.0,0.0409936]
[1767219799527,0.08846972,87921.0,87917.0,0.0114]
[1767219799866,0.08846972,87921.0,87917.0,0.0040429]
[1767219805306,0.08846972,87921.0,87917.0,0.0450365]
[1767219812312,0.08846972,87921.0,87918.0,0.00300222]
[1767219823027,0.08747148,87921.0,87918.0,0.00300222]
[1767219824466,0.08747148,87921.0,87918.0,0.00499861]
[1767219835831,0.00565593,87922.0,87918.0,0.00499861]
[1767219838101,0.00565593,87922.0,87918.0,0.00425316]
[1767219841285,0.09837047,87922.0,87918.0,0.00196933]
[1767219841736,0.09837047,87922.0,87918.0,0.00191246]
[1767219847343,0.09782147,87922.0,87918.0,0.00191246]
[1767219850006,0.00510693,87922.0,87918.0,0.00191246]
[1767219853760,0.00510693,87922.0,87918.0,0.0114]
[1767219854391,0.00510693,87922.0,87918.0,0.05244459]
[1767219854568,0.00510693,87922.0,87918.0,0.0114]
[1767219857122,0.00510693,87922.0,87918.0,0.05244459]
[1767219857320,0.00510693,87922.0,87918.0,0.0114]
[1767219857752,0.00510693,87922.0,87918.0,0.05244459]
[1767219857955,0.00510693,87922.0,87918.0,0.0114]
[1767219858591,0.00510693,87922.0,87918.0,0.05244459]
[1767219860674,0.00410869,87922.0,87918.0,0.05244459]
[1767219874061,0.08884528,87922.0,87918.0,0.05189559]
[1767219874234,0.08884528,87922.0,87918.0,0.010851]
[1767219874841,0.08884528,87922.0,87921.0,0.00031374]
[1767219875819,0.08884528,87922.0,87918.0,0.00860542]
[1767219879921,0.08884528,87922.0,87918.0,0.00364805]
[1767219898375,0.08884528,87922.0,87916.0,0.0114]
[1767219902508,0.01784027,87933.0,87916.0,0.0114]
[1767219902509,0.01784027,87933.0,87917.0,0.08577494]
[1767219902709,0.01584375,87933.0,87918.0,0.07647115]
[1767219903090,0.0001455,87938.0,87918.0,0.07647115]
[1767219903289,0.0001455,87938.0,87924.0,0.07644795]
[1767219903466,0.0001455,87938.0,87926.0,0.07644795]
[1767219903870,0.0001455,87938.0,87928.0,0.07644795]
[1767219904240,0.082192,87943.0,87928.0,0.07644795]
[1767219905040,0.08254594,87943.0,87928.0,0.07644795]
[1767219908244,0.08205723,87943.0,87928.0,0.07644795]
[1767219908445,0.08205723,87943.0,87929.0,0.01973088]
[1767219913375,0.08205723,87943.0,87930.0,0.03415854]
[1767219933175,0.08205723,87943.0,87930.0,0.09566385]
[1767219933637,0.08205723,87943.0,87930.0,0.06150531]
[1767219933838,0.08205723,87943.0,87931.0,0.03415854]
[1767219934012,0.08205723,87943.0,87932.0,0.0114]
[1767219934610,0.08205723,87943.0,87932.0,0.04555854]
[1767219936112,0.08205723,87943.0,87933.0,0.02064154]
[1767219938636,0.0002,87944.0,87934.0,0.07922068]
[1767219938764,0.00010058,87944.0,87934.0,0.03415691]
[1767219938968,0.00010058,87944.0,87935.0,0.07922068]
[1767219939170,0.00010058,87944.0,87936.0,0.02069244]
[1767219941283,0.00010058,87944.0,87936.0,0.01950398]
[1767219944139,0.00010119,87948.0,87937.0,0.07905224]
[1767219944335,0.01068665,87947.0,87937.0,0.07905224]
[1767219944658,0.01068665,87946.0,87936.0,0.01950398]
[1767219944862,0.01068665,87945.0,87937.0,0.01893654]
[1767219945157,0.01068665,87944.0,87937.0,0.01903712]
[1767219945365,0.00010119,87948.0,87937.0,0.01903712]
[1767219945522,0.01068664,87947.0,87937.0,0.01903712]
[1767219945721,0.01068664,87946.0,87937.0,0.01903712]
[1767219945923,0.01068664,87945.0,87938.0,0.08988512]
[1767219946124,0.01803684,87951.0,87939.0,0.0114]
[1767219946305,0.01803684,87951.0,87940.0,0.07885551]
[1767219946711,0.01803684,87951.0,87940.0,0.07245693]
[1767219946953,0.01803684,87951.0,87941.0,0.01129923]
[1767219947470,0.0114,87962.0,87941.0,0.01129923]
[1767219947674,0.0116,87956.0,87942.0,0.05439612]
[1767219950254,0.0116,87956.0,87939.0,0.0114]
[1767219950606,0.10431033,87954.0,87939.0,0.0114]
[1767219958082,0.01068244,87953.0,87939.0,0.0114]
[1767219958241,0.01068244,87952.0,87939.0,0.0114]
[1767219958447,0.01068244,87951.0,87939.0,0.03047848]
[1767219958647,0.10431033,87954.0,87939.0,0.03047848]
[1767219958648,0.0096842,87950.0,87939.0,0.03047848]
[1767219958810,0.10431033,87954.0,87939.0,0.12583761]
[1767219959017,0.0001455,87955.0,87943.0,0.04796402]
[1767219959312,0.0001455,87955.0,87946.0,0.04099653]
[1767219959565,0.0001455,87955.0,87948.0,0.04099653]
[1767219959792,0.0001455,87955.0,87949.0,0.04099653]
[1767219960197,0.0001455,87955.0,87949.0,0.04093968]
[1767219960571,0.0864747,87968.0,87948.0,0.04727522]
[1767219960915,0.0864747,87968.0,87949.0,0.06115399]
[1767219966634,0.0864747,87968.0,87949.0,0.04727522]
[1767219966839,0.0864747,87968.0,87948.0,0.00455341]
[1767219971608,0.0864747,87968.0,87946.0,0.00833062]
[1767219971993,0.0864747,87968.0,87948.0,0.03414925]
[1767219972149,0.0864747,87947.0,87945.0,0.0114]
[1767219972350,0.0864747,87947.0,87944.0,0.0114]
[1767219972573,0.0864747,87958.0,87944.0,0.0114]
[1767219977667,0.0114,87959.0,87945.0,0.08676713]
[1767219978406,0.0864747,87958.0,87944.0,0.0114]
[1767219983026,0.0864747,87958.0,87944.0,0.00719012]
[1767219993105,0.0864747,87958.0,87944.0,0.00713326]
[1767220001318,0.09617738,87957.0,87944.0,0.00713326]
[1767220001514,0.08549272,87957.0,87944.0,0.00713326]
[1767220003028,0.08549272,87957.0,87944.0,0.00304368]
[1767220005985,0.08549272,87957.0,87942.0,0.09582363]
[1767220008491,0.08549272,87957.0,87943.0,0.00959242]
[1767220009228,0.08549272,87957.0,87942.0,0.09582363]
[1767220011925,0.02461939,87956.0,87942.0,0.09582363]
[1767220014915,0.0114,87959.0,87942.0,0.09582363]
[1767220015253,0.01068554,87958.0,87942.0,0.09582363]
[1767220015450,0.01068554,87957.0,87942.0,0.09582363]
[1767220016402,0.01068554,87957.0,87942.0,0.09173377]
[1767220027632,0.09861352,87957.0,87942.0,0.09173377]
[1767220027886,0.03530504,87956.0,87942.0,0.09173377]
[1767220028093,0.0246195,87956.0,87942.0,0.09173377]
[1767220032830,0.0246195,87956.0,87942.0,0.08534443]
[1767220034507,0.01068304,87955.0,87942.0,0.08534443]
[1767220034677,0.0246195,87956.0,87942.0,0.08534443]
[1767220034877,0.01068304,87955.0,87942.0,0.08534443]
[1767220035121,0.0246195,87956.0,87942.0,0.08534443]
[1767220035277,0.01068305,87955.0,87942.0,0.08534443]
[1767220035473,0.0246195,87956.0,87942.0,0.08534443]
[1767220035827,0.01068306,87955.0,87942.0,0.08534443]
[1767220036001,0.0246195,87956.0,87942.0,0.08534443]
[1767220036203,0.01068306,87955.0,87942.0,0.08534443]
[1767220036406,0.0246195,87956.0,87942.0,0.08534443]
[1767220036607,0.0106831,87955.0,87942.0,0.08534443]
[1767220036778,0.02267722,87956.0,87942.0,0.08534443]
[1767220036977,0.0106831,87955.0,87942.0,0.08534443]
[1767220037308,0.08792798,87957.0,87942.0,0.08534443]
[1767220037491,0.01068315,87956.0,87942.0,0.09388893]
[1767220037700,0.01068315,87955.0,87942.0,0.09388893]
[1767220037900,0.08792798,87957.0,87942.0,0.09388893]
[1767220038207,0.01068315,87956.0,87942.0,0.09388893]
[1767220038388,0.01068315,87955.0,87942.0,0.08534443]
[1767220038587,0.08792798,87957.0,87942.0,0.08534443]
[1767220038839,0.01068322,87956.0,87942.0,0.08534443]
[1767220039020,0.01068322,87955.0,87942.0,0.08534443]
[1767220039216,0.08792798,87957.0,87942.0,0.08534443]
[1767220039403,0.01068331,87956.0,87942.0,0.08534443]
[1767220039603,0.01068331,87955.0,87942.0,0.08534443]
[1767220039940,0.08792798,87957.0,87942.0,0.08534443]
[1767220040146,0.01068331,87956.0,87942.0,0.08534443]
[1767220040357,0.01068331,87955.0,87942.0,0.08534443]
[1767220040642,0.08792798,87957.0,87942.0,0.08534443]
[1767220040846,0.01068342,87956.0,87942.0,0.08534443]
[1767220040989,0.08792798,87957.0,87942.0,0.08534443]
[1767220040990,0.01068342,87955.0,87942.0,0.08534443]
[1767220041188,0.08792798,87957.0,87942.0,0.08534443]
[1767220041452,0.01068356,87956.0,87942.0,0.08534443]
[1767220041750,0.01068356,87955.0,87942.0,0.08534443]
[1767220041889,0.08792798,87957.0,87942.0,0.08534443]
[1767220042091,0.01068356,87956.0,87942.0,0.08534443]
[1767220042290,0.01068356,87955.0,87942.0,0.08534443]
[1767220042495,0.08792798,87957.0,87942.0,0.08534443]
[1767220042695,0.01068372,87956.0,87942.0,0.08534443]
[1767220042950,0.08792798,87957.0,87942.0,0.08534443]
[1767220042951,0.01068372,87955.0,87942.0,0.08534443]
[1767220043151,0.08792798,87957.0,87942.0,0.08534443]
[1767220043347,0.01068392,87956.0,87942.0,0.08534443]
[1767220043496,0.08792798,87957.0,87942.0,0.08534443]
[1767220052462,0.08792798,87957.0,87942.0,0.00092081]
[1767220059716,0.08792798,87957.0,87942.0,0.08719155]
[1767220062893,0.08792798,87957.0,87942.0,0.00092081]
[1767220063486,0.08792798,87957.0,87937.0,0.00010058]
[1767220063689,0.08792798,87957.0,87943.0,0.0114]
[1767220065989,0.08792798,87957.0,87943.0,0.00500931]
[1767220076391,0.08792798,87957.0,87943.0,0.00438801]
[1767220077425,0.08792798,87957.0,87943.0,0.00376672]
[1767220078379,0.08792798,87957.0,87943.0,0.00314544]
[1767220078969,0.09022825,87959.0,87943.0,0.00314544]
[1767220079134,0.09022825,87957.0,87943.0,0.00252417]
[1767220082573,0.09022825,87957.0,87941.0,0.0114]
[1767220082817,0.09028455,87957.0,87941.0,0.0114]
[1767220083113,0.09028455,87957.0,87938.0,0.0114]
[1767220083114,0.09022825,87955.0,87938.0,0.0114]
[1767220084508,0.09037375,87955.0,87938.0,0.0114]
[1767220085714,0.09037375,87955.0,87938.0,0.01134314]
[1767220094178,0.09037375,87955.0,87938.0,0.00725411]
[1767220094805,0.09025979,87955.0,87938.0,0.00725411]
[1767220095222,0.09025979,87955.0,87938.0,0.00719724]
[1767220095852,0.09025979,87955.0,87938.0,0.00219063]
[1767220096063,0.09025979,87955.0,87938.0,0.0114]
[1767220099470,0.09022825,87954.0,87938.0,0.0114]
[1767220132231,0.03429813,87955.0,87954.0,0.000549]
[1767220132596,0.03429813,87955.0,87943.0,0.07737941]
[1767220132873,0.0001455,87955.0,87938.0,0.08877941]
[1767220133015,0.0001455,87955.0,87938.0,0.09765735]
[1767220133471,0.0001455,87955.0,87938.0,0.08877941]
[1767220138936,0.08185384,87955.0,87938.0,0.08877941]
[1767220159584,0.08185384,87955.0,87938.0,0.0114]
[1767220159975,0.08231211,87953.0,87938.0,0.0114]
[1767220165834,0.000549,87938.0,87929.0,0.04514674]
[1767220166047,0.08231211,87944.0,87930.0,0.0114]
[1767220170469,0.09707311,87944.0,87930.0,0.0114]
[1767220173825,0.014761,87944.0,87931.0,0.07640024]
[1767220179000,0.014761,87944.0,87929.0,0.04514674]
[1767220179197,0.014761,87944.0,87891.0,0.01137772]
[1767220179198,0.08231211,87932.0,87909.0,0.04552]
[1767220196911,0.08231211,87932.0,87909.0,0.030759]
[1767220197765,0.08231211,87932.0,87909.0,0.04317518]
[1767220200862,0.08231211,87932.0,87909.0,0.03678595]
[1767220203374,0.08231211,87932.0,87909.0,0.02436977]
[1767220203595,0.08231211,87932.0,87908.0,0.0114]
[1767220204025,0.07786365,87931.0,87908.0,0.0114]
[1767220209840,0.07786365,87931.0,87907.0,0.0001455]
[1767220210063,0.07786365,87931.0,87908.0,0.0114]
[1767220210255,0.07786365,87931.0,87908.0,0.02074028]
[1767220211523,0.07786365,87929.0,87908.0,0.02074028]
[1767220212591,0.07786365,87929.0,87908.0,0.0114]
[1767220212792,0.07786365,87929.0,87908.0,0.01175394]
[1767220215042,0.07786365,87929.0,87909.0,0.0228]
[1767220215346,0.07786365,87929.0,87908.0,0.01175394]
[1767220250449,0.07786365,87929.0,87908.0,0.00784294]
[1767220250752,0.05807586,87929.0,87908.0,0.00784294]
[1767220251129,0.05807586,87927.0,87908.0,0.00784294]
[1767220251894,0.05807586,87927.0,87906.0,0.0114]
[1767220252058,0.05797522,87905.0,87899.0,0.0114]
[1767220266834,0.05797522,87905.0,87898.0,0.0001455]
[1767220276212,0.05797522,87905.0,87898.0,5e-07]
[1767220278653,0.05801947,87905.0,87898.0,5e-07]
[1767220297217,0.05801947,87905.0,87891.0,0.00146113]
[1767220299203,0.05801947,87905.0,87886.0,0.08185725]
[1767220299535,0.05682567,87904.0,87878.0,0.12044681]
[1767220299737,0.05682567,87904.0,87878.0,0.03858956]
[1767220299898,0.05682567,87904.0,87881.0,0.02733506]
[1767220314686,0.05682567,87904.0,87881.0,0.0001455]
[1767220316071,0.01784298,87902.0,87881.0,0.0001455]
[1767220316278,0.05349491,87901.0,87881.0,0.0001455]
[1767220316447,0.05349491,87899.0,87881.0,0.0001455]
[1767220326721,0.05349491,87899.0,87882.0,0.0235147]
[1767220326901,0.05335091,87899.0,87882.0,0.0235147]
[1767220337343,0.05323722,87899.0,87882.0,0.0235147]
[1767220347215,0.05323722,87899.0,87882.0,0.01840013]
[1767220351685,0.0114,87899.0,87882.0,0.01840013]
[1767220354244,0.06189805,87899.0,87882.0,0.01840013]
[1767220368399,0.06189805,87899.0,87882.0,0.01834323]
[1767220368763,0.06189805,87899.0,87881.0,0.0001455]
[1767220396619,0.05337141,87897.0,87881.0,0.0001455]
[1767220396970,0.05337141,87897.0,87872.0,0.0001455]
[1767220397174,0.05337141,87895.0,87872.0,0.0001455]
[1767220397421,0.05337141,87893.0,87872.0,0.0001455]
[1767220397584,0.01784444,87897.0,87872.0,0.0001455]
[1767220397585,0.05337141,87891.0,87872.0,0.0001455]
[1767220411835,0.0566842,87890.0,87872.0,0.0001455]
[1767220418544,0.000145,87872.0,87863.0,0.0001455]
[1767220418736,0.0566842,87875.0,87863.0,0.0001455]
[1767220419772,0.0566842,87875.0,87863.0,0.00018978]
[1767220421626,0.0114,87882.0,87863.0,0.00018978]
[1767220421827,0.0566842,87881.0,87863.0,0.00018978]
[1767220430021,0.02685408,87880.0,87863.0,0.00018978]
[1767220430170,0.06034932,87879.0,87863.0,0.00018978]
[1767220437349,0.06053832,87863.0,87833.0,0.14334173]
[1767220437558,0.02205786,87862.0,87833.0,0.00035355]
[1767220437759,0.06034932,87857.0,87833.0,0.00035355]
[1767220437931,0.06034932,87855.0,87833.0,0.00035355]
[1767220438134,0.06034932,87853.0,87833.0,0.00035355]
[1767220438537,0.00455957,87852.0,87833.0,0.00035355]
[1767220438876,0.06034932,87851.0,87833.0,0.00035355]
[1767220439672,0.06034932,87849.0,87833.0,0.00035355]
[1767220440449,0.06034932,87847.0,87833.0,0.00035355]
[1767220441122,0.06034932,87845.0,87833.0,0.00035355]
[1767220441837,0.06034932,87843.0,87833.0,0.00035355]
[1767220442595,0.06490889,87842.0,87833.0,0.00035355]
[1767220442809,0.0114,87841.0,87833.0,0.00035355]
[1767220445014,0.00455957,87840.0,87833.0,0.00035355]
[1767220447029,0.01595957,87840.0,87833.0,0.00035355]
[1767220447438,0.0114,87840.0,87828.0,0.05018472]
[1767220447725,0.00455957,87839.0,87828.0,0.05018472]
[1767220450373,0.00455957,87839.0,87828.0,0.04281501]
[1767220454538,0.00455957,87839.0,87825.0,0.0002619]
[1767220458462,0.00455957,87839.0,87826.0,0.00034306]
[1767220463697,0.00455957,87839.0,87806.0,0.08172012]
[1767220463698,0.06994491,87838.0,87806.0,0.08172012]
[1767220463846,0.05854491,87825.0,87813.0,0.0114]
[1767220464426,0.09274734,87824.0,87813.0,0.0114]
[1767220464862,0.05854491,87824.0,87813.0,0.0114]
[1767220465035,0.05854491,87822.0,87813.0,0.0114]
[1767220465238,0.05854491,87822.0,87814.0,0.0114]
[1767220465655,0.03420243,87821.0,87814.0,0.010851]
[1767220466726,0.03420243,87821.0,87815.0,0.0114]
[1767220467000,0.03420243,87821.0,87815.0,0.0072974]
[1767220467178,0.03420243,87821.0,87815.0,0.00479273]
[1767220467867,0.03420243,87821.0,87805.0,0.05348974]
[1767220468083,0.09274734,87821.0,87806.0,0.00729744]
[1767220468469,0.05854491,87821.0,87806.0,0.00729744]
[1767220468667,0.03420259,87820.0,87806.0,0.00729744]
[1767220470059,0.05854491,87819.0,87806.0,0.00729744]
[1767220470691,0.0927475,87819.0,87806.0,0.00729744]
[1767220472048,0.05854491,87818.0,87806.0,0.00729744]
[1767220472570,0.05799591,87818.0,87806.0,0.00729744]
[1767220472825,0.0922001,87818.0,87806.0,0.00729744]
[1767220474348,0.0922001,87818.0,87803.0,0.05834335]
[1767220474476,0.0922001,87818.0,87807.0,0.0114]
[1767220476103,0.05799591,87818.0,87807.0,0.0114]
[1767220476291,0.03420419,87817.0,87807.0,0.0114]
[1767220478963,0.03420419,87817.0,87807.0,0.00729744]
[1767220479163,0.03420419,87817.0,87807.0,0.00378914]
[1767220479759,0.03420419,87817.0,87803.0,0.05834335]
[1767220479990,0.03420419,87817.0,87808.0,0.0114]
[1767220481568,0.03420419,87817.0,87808.0,0.00729686]
[1767220481726,0.03420419,87817.0,87808.0,0.00319372]
[1767220483613,0.03420419,87817.0,87803.0,0.05834335]
[1767220483614,0.0927491,87817.0,87803.0,0.05834335]
[1767220483813,0.0927491,87817.0,87804.0,0.0114]
[1767220483814,0.05854491,87816.0,87804.0,0.0114]
[1767220484030,0.05854491,87816.0,87805.0,0.0114]
[1767220484225,0.03420532,87815.0,87805.0,0.0114]
[1767220484690,0.03420532,87815.0,87806.0,0.0114]
[1767220485936,0.03420532,87815.0,87807.0,0.0114]
[1767220486081,0.03420532,87815.0,87807.0,0.010851]
[1767220488669,0.03420532,87815.0,87808.0,0.0114]
[1767220490103,0.05854491,87816.0,87808.0,0.0114]
[1767220490891,0.05854491,87816.0,87806.0,0.0114]
[1767220507330,0.05854491,87816.0,87806.0,0.00220948]
[1767220510670,0.05854491,87816.0,87795.0,0.06084377]
[1767220510880,0.05854491,87816.0,87801.0,0.0114]
[1767220511096,0.01785946,87823.0,87801.0,0.0114]
[1767220511097,0.01785946,87823.0,87816.0,0.001099]
[1767220511301,0.01785946,87823.0,87816.0,0.00047774]
[1767220511656,0.01785946,87823.0,87810.0,0.06084377]
[1767220512063,0.01785946,87823.0,87811.0,0.06084377]
[1767220517176,0.07247371,87829.0,87811.0,0.06084377]
[1767220517382,0.07175655,87828.0,87811.0,0.06084377]
[1767220517585,0.07175655,87827.0,87811.0,0.06084377]
[1767220517805,0.06107371,87827.0,87811.0,0.06084377]
[1767220519778,0.0114,87829.0,87811.0,0.06084377]
[1767220519908,0.03077396,87845.0,87822.0,0.06240616]
[1767220519909,0.06107371,87837.0,87822.0,0.06240616]
[1767220520113,0.06107371,87837.0,87823.0,0.0114]
[1767220522110,0.0178568,87838.0,87823.0,0.07732861]
[1767220522733,0.0178568,87838.0,87824.0,0.06592861]
[1767220522972,0.000206,87846.0,87824.0,0.06592861]
[1767220523158,0.000206,87846.0,87830.0,0.06592861]
[1767220523380,0.000206,87846.0,87832.0,0.06592861]
[1767220529112,0.000206,87846.0,87834.0,0.06592861]
[1767220539114,0.000206,87846.0,87835.0,0.06592861]
[1767220539711,0.000206,87846.0,87835.0,0.06475005]
[1767220541579,0.000206,87846.0,87835.0,0.07852061]
[1767220543087,0.000206,87846.0,87835.0,0.06475005]
[1767220546005,0.06270311,87859.0,87834.0,0.06592861]
[1767220546204,0.06270311,87859.0,87838.0,0.06592861]
[1767220546408,0.06270311,87859.0,87840.0,0.06592861]
[1767220546745,0.01785153,87857.0,87840.0,0.07982186]
[1767220547625,0.01785153,87857.0,87841.0,0.0615555]
[1767220548343,0.01785153,87857.0,87842.0,0.0615555]
[1767220548541,0.000206,87859.0,87844.0,0.06592861]
[1767220548740,0.000206,87859.0,87846.0,0.06592861]
[1767220548983,0.000206,87859.0,87847.0,0.0114]
[1767220550364,0.000206,87859.0,87847.0,0.0729555]
[1767220550526,0.000206,87859.0,87848.0,0.0615555]
[1767220552262,0.000206,87859.0,87849.0,0.0615555]
[1767220556468,0.000206,87859.0,87848.0,0.0615555]
[1767220556965,0.000206,87859.0,87849.0,0.0615555]
[1767220559525,0.000206,87859.0,87850.0,0.01388841]
[1767220560367,0.0005099,87860.0,87849.0,0.05509203]
[1767220560746,0.0005099,87860.0,87849.0,0.04868548]
[1767220560958,0.0005099,87860.0,87847.0,0.0114]
[1767220561140,0.0005099,87860.0,87847.0,0.07856138]
[1767220562566,0.0005099,87860.0,87848.0,0.01602815]
[1767220562772,0.0005099,87860.0,87847.0,0.07856138]
[1767220578283,0.0005099,87860.0,87847.0,0.1602815]